fUST/lending_fUST_20251020
["ID","MTS","AMOUNT","RATE_DAILY","PERIOD"]
[391873070,1760939448978,-576.28999999,0.00038356,30]
[391873071,1760939448989,-1261.23,0.00038356,30]
[391873072,1760939448998,-500.0,0.00038356,30]
[391873073,1760939449008,-1261.23,0.00038356,30]
[391873074,1760939449018,-506.49429743,0.00038356,30]
[391873075,1760939449030,-1261.23,0.00038356,30]
[391873076,1760939449039,-3903.92,0.00038356,120]
[391873077,1760939449049,-1261.23,0.00038356,30]
[391873078,1760939449061,-1261.23,0.00038356,30]
[391873079,1760939449073,-500.0,0.00038356,30]
[391873080,1760939449084,-1261.23,0.00038356,30]
[391873081,1760939449094,-1261.23,0.00038356,30]
[391873082,1760939449104,-500.0,0.00038356,30]
[391873083,1760939449114,-1261.23,0.00038356,30]
[391873084,1760939449124,-500.0,0.00038356,30]
[391873085,1760939449134,-508.27711072,0.00038356,30]
[391873086,1760939449143,-500.0,0.00038356,30]
[391873087,1760939449153,-1261.23,0.00038356,30]
[391873088,1760939449162,-500.0,0.00038356,30]
[391873089,1760939449172,-503.69669914,0.00038356,30]
[391873090,1760939449181,-500.0,0.00038356,30]
[391873091,1760939449191,-500.0,0.00038356,30]
[391873092,1760939449201,-1261.23,0.00038356,30]
[391873093,1760939449211,-505.48707284,0.00038356,30]
[391873094,1760939449221,-1261.23,0.00038356,30]
[391873095,1760939449235,-1261.23,0.00038356,30]
[391873096,1760939449263,-487.9,0.00038356,30]
[391873097,1760939449273,-1261.23,0.00038356,30]
[391873098,1760939449283,-1261.23,0.00038356,30]
[391873099,1760939449293,-173.12733688,0.00038356,30]
[391873100,1760939449302,-500.0,0.00038356,30]
[391873101,1760939449312,-1261.23,0.00038356,30]
[391873102,1760939449321,-500.0,0.00038356,30]
[391873103,1760939449331,-1261.23,0.00038356,30]
[391873104,1760939449340,-372.7806002,0.00038356,30]
[391873105,1760939449350,-1261.23,0.00038356,30]
[391873106,1760939449359,-500.0,0.00038356,30]
[391873107,1760939449369,-1261.33,0.00038356,30]
[391873108,1760939449378,-500.0,0.00038356,30]
[391873109,1760939449387,-507.58543988,0.00038356,30]
[391873110,1760939449397,-500.0,0.00038356,30]
[391873111,1760939449406,-500.0,0.00038356,30]
[391873112,1760939449415,-642.57,0.00038356,30]
[391873113,1760939449424,-500.0,0.00038356,30]
[391873114,1760939449433,-500.0,0.00038356,30]
[391873115,1760939449442,-500.0,0.00038356,30]
[391873116,1760939449451,-482.27263152,0.00038356,30]
[391873117,1760939449461,-500.0,0.00038356,30]
[391873118,1760939449470,-500.0,0.00038356,30]
[391873119,1760939449479,-500.0,0.00038356,30]
[391873120,1760939449489,-500.0,0.00038356,30]
[391873121,1760939449498,-505.53315587,0.00038356,30]
[391873122,1760939449508,-155.09,0.00038356,30]
[391873123,1760939449517,-500.0,0.00038356,30]
[391873124,1760939449527,-500.0,0.00038356,30]
[391873125,1760939449536,-500.0,0.00038356,30]
[391873126,1760939449546,-500.0,0.00038356,30]
[391873127,1760939449555,-351.31855238,0.00038356,30]
[391873128,1760939449565,-500.0,0.00038356,30]
[391873129,1760939449574,-500.0,0.00038356,30]
[391873130,1760939449583,-500.0,0.00038356,30]
[391873131,1760939449592,-201.83363774,0.00038356,30]
[391873132,1760939449601,-500.0,0.00038356,30]
[391873133,1760939449610,-167.0,0.00038356,30]
[391873134,1760939449620,-195.26315768,0.00038356,30]
[391873135,1760939449629,-500.0,0.00038356,30]
[391873136,1760939449638,-500.0,0.00038356,30]
[391873137,1760939449647,-500.0,0.00038356,30]
[391873138,1760939449657,-500.0,0.00038356,30]
[391873139,1760939449666,-500.0,0.00038356,30]
[391873140,1760939449675,-500.0,0.00038356,30]
[391873141,1760939449685,-500.0,0.00038356,30]
[391873142,1760939449699,-500.0,0.00038356,30]
[391873143,1760939449708,-413.57,0.00038356,30]
[391873144,1760939449717,-500.0,0.00038356,30]
[391873145,1760939449726,-500.0,0.00038356,30]
[391873146,1760939449737,-500.0,0.00038356,30]
[391873147,1760939449746,-500.0,0.00038356,30]
[391873148,1760939449755,-500.0,0.00038356,30]
[391873149,1760939449763,-500.0,0.00038356,30]
[391873150,1760939449774,-500.0,0.00038356,30]
[391873151,1760939449783,-500.0,0.00038356,30]
[391873152,1760939449792,-500.0,0.00038356,30]
[391873153,1760939449801,-500.0,0.00038356,30]
[391873154,1760939449811,-500.0,0.00038356,30]
[391873155,1760939449820,-500.0,0.00038356,30]
[391873156,1760939449830,-500.0,0.00038356,30]
[391873157,1760939449839,-502.31495926,0.00038356,30]
[391873158,1760939449849,-309.8,0.00038356,30]
[391873159,1760939449859,-500.0,0.00038356,30]
[391873160,1760939449868,-500.0,0.00038356,30]
[391873161,1760939449878,-500.0,0.00038356,30]
[391873162,1760939449887,-500.0,0.00038356,30]
[391873163,1760939449897,-500.0,0.00038356,30]
[391873164,1760939449907,-500.0,0.00038356,30]
[391873165,1760939449916,-2145.83,0.00038356,30]
[391873166,1760939449925,-500.0,0.00038356,30]
[391873167,1760939449935,-2145.83,0.00038356,30]
[391873168,1760939449944,-621.82,0.00038356,30]
[391873169,1760939449953,-2145.83,0.00038356,30]
[391873170,1760939449962,-2145.83,0.00038356,30]
[391873171,1760939449971,-2145.83,0.00038356,30]
[391873172,1760939449981,-2145.83,0.00038356,30]
[391873173,1760939449990,-2145.83,0.00038356,30]
[391873174,1760939450000,-447.14203872,0.00038356,30]
[391873175,1760939450010,-2145.83,0.00038356,30]
[391873176,1760939450019,-2145.83,0.00038356,30]
[391873177,1760939450030,-2145.83,0.00038356,30]
[391873178,1760939450039,-2145.83,0.00038356,30]
[391873179,1760939450048,-2145.83,0.00038356,30]
[391873180,1760939450058,-2145.83,0.00038356,30]
[391873181,1760939450067,-2145.83,0.00038356,30]
[391873182,1760939450076,-2145.83,0.00038356,30]
[391873183,1760939450085,-2145.83,0.00038356,30]
[391873184,1760939450095,-2145.83,0.00038356,30]
[391873185,1760939450105,-2145.83,0.00038356,30]
[391873186,1760939450114,-500.0,0.00038356,30]
[391873187,1760939450124,-2145.83,0.00038356,30]
[391873188,1760939450133,-500.0,0.00038356,30]
[391873189,1760939450143,-500.0,0.00038356,30]
[391873190,1760939450152,-2145.83,0.00038356,30]
[391873191,1760939450162,-400.13,0.00038356,30]
[391873192,1760939450171,-500.0,0.00038356,30]
[391873193,1760939450180,-500.0,0.00038356,30]
[391873194,1760939450190,-2145.83,0.00038356,30]
[391873195,1760939450199,-500.0,0.00038356,30]
[391873196,1760939450209,-500.0,0.00038356,30]
[391873197,1760939450219,-2145.83,0.00038356,30]
[391873198,1760939450228,-500.0,0.00038356,30]
[391873199,1760939450238,-500.0,0.00038356,30]
[391873200,1760939450248,-500.52266397,0.00038356,30]
[391873201,1760939450260,-2145.83,0.00038356,30]
[391873202,1760939450270,-572.44,0.00038356,30]
[391873203,1760939450279,-500.0,0.00038356,30]
[391873204,1760939450289,-500.0,0.00038356,120]
[391873205,1760939450300,-2145.91,0.00038356,30]
[391873206,1760939450310,-500.0,0.00038356,30]
[391873207,1760939450321,-500.0,0.00038356,30]
[391873208,1760939450331,-177.92482254,0.00038356,30]
[391873209,1760939450342,-167.0356732,0.00038356,30]
[391873210,1760939450352,-500.0,0.00038356,30]
[391873211,1760939450362,-500.0,0.00038356,30]
[391873212,1760939450372,-500.0,0.00038356,30]
[391873213,1760939450382,-186.44024294,0.00038356,30]
[391873214,1760939450392,-390.94,0.00038356,30]
[391873215,1760939450402,-500.0,0.00038356,30]
[391873216,1760939450413,-500.0,0.00038356,30]
[391873217,1760939450425,-500.0,0.00038356,30]
[391873218,1760939450435,-500.0,0.00038356,30]
[391873219,1760939450446,-500.0,0.00038356,30]
[391873220,1760939450456,-500.0,0.00038356,30]
[391873221,1760939450467,-500.0,0.00038356,30]
[391873222,1760939450476,-500.0,0.00038356,30]
[391873223,1760939450486,-500.0,0.00038356,30]
[391873224,1760939450496,-500.0,0.00038356,30]
[391873225,1760939450505,-500.0,0.00038356,30]
[391873226,1760939450515,-500.0,0.00038356,30]
[391873227,1760939450525,-548.99,0.00038356,30]
[391873228,1760939450534,-163.3845226,0.00038356,30]
[391873229,1760939450544,-500.0,0.00038356,30]
[391873230,1760939450553,-500.0,0.00038356,30]
[391873231,1760939450563,-500.0,0.00038356,30]
[391873232,1760939450573,-500.0,0.00038356,30]
[391873233,1760939450583,-500.0,0.00038356,30]
[391873234,1760939450593,-494.36,0.00038356,30]
[391873235,1760939450602,-500.0,0.00038356,30]
[391873236,1760939450613,-500.0,0.00038356,30]
[391873237,1760939450622,-500.0,0.00038356,30]
[391873238,1760939450632,-500.0,0.00038356,30]
[391873239,1760939450642,-519.71933321,0.00038356,30]
[391873240,1760939450652,-500.0,0.00038356,30]
[391873241,1760939450662,-501.26633606,0.00038356,30]
[391873242,1760939450672,-500.0,0.00038356,30]
[391873243,1760939450682,-500.0,0.00038356,30]
[391873244,1760939450695,-500.0,0.00038356,30]
[391873245,1760939450705,-455.01177463,0.00038356,30]
[391873246,1760939450715,-500.0,0.00038356,30]
[391873247,1760939450724,-344.34,0.00038356,30]
[391873248,1760939450735,-500.0,0.00038356,30]
[391873249,1760939450748,-506.18050176,0.00038356,30]
[391873250,1760939450758,-500.0,0.00038356,30]
[391873251,1760939450767,-505.18694552,0.00038356,30]
[391873252,1760939450776,-500.0,0.00038356,30]
[391873253,1760939450785,-500.0,0.00038356,30]
[391873254,1760939450795,-266.84105302,0.00038356,30]
[391873255,1760939450804,-594.65526085,0.00038356,30]
[391873256,1760939450813,-500.0,0.00038356,30]
[391873257,1760939450823,-500.0,0.00038356,30]
[391873258,1760939450832,-161.41584127,0.00038356,30]
[391873259,1760939450842,-500.0,0.00038356,30]
[391873260,1760939450851,-604.09,0.00038356,30]
[391873261,1760939450860,-500.0,0.00038356,30]
[391873262,1760939450870,-500.0,0.00038356,30]
[391873263,1760939450880,-508.60652306,0.00038356,30]
[391873264,1760939450889,-546.27782033,0.00038356,30]
[391873265,1760939450899,-582.88400024,0.00038356,30]
[391873266,1760939450908,-500.0,0.00038356,30]
[391873267,1760939450917,-323.43628839,0.00038356,30]
[391873268,1760939450927,-440.12755793,0.00038356,30]
[391873269,1760939450936,-500.0,0.00038356,30]
[391873270,1760939450946,-500.0,0.00038356,30]
[391873271,1760939450956,-509.16138772,0.00038356,30]
[391873272,1760939450965,-500.0,0.00038356,30]
[391873273,1760939450974,-500.0,0.00038356,30]
[391873274,1760939450984,-500.0,0.00038356,30]
[391873275,1760939450994,-500.0,0.00038356,30]
[391873276,1760939451114,-500.0,0.00038356,30]
[391873277,1760939451124,-500.0,0.00038356,30]
[391873278,1760939451133,-500.0,0.00038356,30]
[391873279,1760939451142,-500.0,0.00038356,30]
[391873280,1760939451151,-183.66,0.00038356,30]
[391873281,1760939451160,-500.0,0.00038356,30]
[391873282,1760939451170,-500.0,0.00038356,30]
[391873283,1760939451179,-426.3,0.00038356,30]
[391873284,1760939451188,-500.0,0.00038356,30]
[391873285,1760939451198,-500.0,0.00038356,30]
[391873286,1760939451207,-500.0,0.00038356,30]
[391873287,1760939451216,-500.0,0.00038356,30]
[391873288,1760939451226,-500.0,0.00038356,30]
[391873289,1760939451235,-500.0,0.00038356,30]
[391873290,1760939451244,-500.0,0.00038356,30]
[391873291,1760939451254,-546.03407583,0.00038356,30]
[391873292,1760939451264,-500.0,0.00038356,30]
[391873293,1760939451273,-500.0,0.00038356,30]
[391873294,1760939451282,-500.0,0.00038356,30]
[391873295,1760939451291,-337.17,0.00038356,30]
[391873296,1760939451300,-500.0,0.00038356,30]
[391873297,1760939451310,-425.88,0.00038356,30]
[391873298,1760939451319,-500.0,0.00038356,30]
[391873299,1760939451329,-468.73757788,0.00038356,30]
[391873300,1760939451338,-646.26637569,0.00038356,30]
[391873301,1760939451347,-500.0,0.00038356,30]
[391873302,1760939451360,-500.0,0.00038356,30]
[391873303,1760939451369,-404.12068593,0.00038356,30]
[391873304,1760939451378,-536.89,0.00038356,30]
[391873305,1760939451387,-500.0,0.00038356,30]
[391873306,1760939451396,-500.0,0.00038356,30]
[391873307,1760939451406,-500.0,0.00038356,30]
[391873308,1760939451416,-500.0,0.00038356,30]
[391873309,1760939451425,-500.0,0.00038356,30]
[391873310,1760939451434,-500.0,0.00038356,30]
[391873311,1760939451444,-500.0,0.00038356,30]
[391873312,1760939451453,-500.0,0.00038356,30]
[391873313,1760939451462,-500.0,0.00038356,30]
[391873314,1760939451472,-419.46286793,0.00038356,30]
[391873315,1760939451481,-500.0,0.00038356,30]
[391873316,1760939451490,-500.0,0.00038356,30]
[391873317,1760939451500,-500.0,0.00038356,30]
[391873318,1760939451509,-500.0,0.00038356,30]
[391873319,1760939451518,-500.0,0.00038356,30]
[391873320,1760939451528,-500.0,0.00038356,30]
[391873321,1760939451537,-500.0,0.00038356,30]
[391873322,1760939451546,-500.0,0.00038356,30]
[391873323,1760939451556,-500.0,0.00038356,30]
[391873324,1760939451566,-260.62,0.00038356,30]
[391873325,1760939451575,-500.0,0.00038356,30]
[391873326,1760939451584,-500.0,0.00038356,30]
[391873327,1760939451594,-592.53,0.00038356,30]
[391873328,1760939451603,-500.0,0.00038356,30]
[391873329,1760939451612,-500.0,0.00038356,30]
[391873330,1760939451622,-500.0,0.00038356,30]
[391873331,1760939451633,-500.0,0.00038356,30]
[391873332,1760939451643,-500.0,0.00038356,30]
[391873333,1760939451653,-500.0,0.00038356,30]
[391873334,1760939451663,-500.0,0.00038356,30]
[391873335,1760939451673,-500.0,0.00038356,30]
[391873336,1760939451683,-500.0,0.00038356,30]
[391873337,1760939451697,-500.0,0.00038356,30]
[391873338,1760939451708,-500.0,0.00038356,30]
[391873339,1760939451718,-500.0,0.00038356,30]
[391873340,1760939451728,-500.0,0.00038356,30]
[391873341,1760939451739,-598.23,0.00038356,30]
[391873343,1760939451749,-500.0,0.00038356,30]
[391873344,1760939451759,-500.0,0.00038356,30]
[391873346,1760939451769,-444.24,0.00038356,30]
[391873347,1760939451779,-500.0,0.00038356,30]
[391873348,1760939451790,-500.0,0.00038356,30]
[391873349,1760939451799,-500.0,0.00038356,30]
[391873350,1760939451810,-500.0,0.00038356,30]
[391873351,1760939451819,-500.0,0.00038356,30]
[391873352,1760939451829,-500.0,0.00038356,30]
[391873353,1760939451839,-500.0,0.00038356,30]
[391873354,1760939451849,-500.0,0.00038356,30]
[391873355,1760939451859,-248.73345766,0.00038356,2]
[391873356,1760939451871,-150.0,0.00038373,5]
[391873357,1760939451880,-150.0,0.00038373,5]
[391873358,1760939451890,-150.0,0.00038373,5]
[391873359,1760939451899,-154.752348,0.00038394,60]
[391873360,1760939451909,-304.8997414,0.00038436,30]
[391873361,1760939451919,-154.752348,0.00038558,20]
[391873362,1760939451929,-155.273958,0.00038558,20]
[391873363,1760939451939,-1500.0,0.00038568,5]
[391873364,1760939451950,-1500.0,0.00038568,5]
[391873365,1760939451960,-1500.0,0.00038568,5]
[391873366,1760939451970,-10000.49727136,0.000387,7]
[391873367,1760939451980,-9030.57349092,0.000387,21]
[391873368,1760939452102,-847.40650908,0.000387,21]
[391873369,1760939452115,-293.28494086,0.00038726,7]
[391873370,1760939452185,-500.0,0.00038356,30]
[391873371,1760939452194,-156.82154494,0.00038356,30]
[391873372,1760939452266,-12442.76977209,0.000254,7]
[391873385,1760939523599,160.0,0.00029,120]
[391873386,1760939524492,160.0,0.00029,120]
[391873387,1760939535697,160.0,0.000241,2]
[391873388,1760939536629,160.0,0.000241,2]
[391873389,1760939546939,160.0,0.000241,2]
[391873426,1760939923473,10000.01,0.00024141,2]
[391873427,1760939923496,10000.01,0.00024141,2]
[391873428,1760939923519,9999.98,0.00024141,2]
[391873430,1760940125799,0.03,0.00019,10]
[391873431,1760940125822,9999.97,0.00019,10]
[391873435,1760940136403,0.04,0.00024141,2]
[391873436,1760940136425,9999.96,0.00024141,2]
[391873437,1760940152278,0.05,0.00024141,2]
[391873438,1760940152302,9999.95,0.00024141,2]
[391873439,1760940166462,0.06,0.00024141,2]
[391873440,1760940166648,9999.94,0.00024141,2]
[391873441,1760940167554,-241.84173898,0.00024528,2]
[391873442,1760940170377,-258.15826098,0.00024528,2]
[391873443,1760940171900,-513.59602812,0.00024528,2]
[391873444,1760940181115,0.07,0.00024141,2]
[391873445,1760940181136,397.71397594,0.00024141,2]
[391873446,1760940203880,-308.17555582,0.00024528,2]
[391873447,1760940206551,-341.35688039,0.00024528,2]
[391873448,1760940209193,-486.40397188,0.00024528,2]
[391873449,1760940248880,-220.43443087,0.000245,2]
[391873450,1760940252600,-79.56556913,0.000245,2]
[391873451,1760940252625,-118.43443087,0.000245,2]
[391873452,1760940254724,-181.56556913,0.000245,2]
[391873453,1760940254747,-65.09800506,0.000245,2]
[391873454,1760940260548,2724.9504,0.00024024,2]
[391873455,1760940302468,417.15472785,0.00024141,2]
[391873489,1760940303584,-257.84607018,0.000245,2]
[391873496,1760940323929,-42.15392982,0.000245,2]
[391873497,1760940323952,-120.09693118,0.000245,2]
[391873498,1760940326624,-179.90306882,0.000245,2]
[391873499,1760940326651,-124.39932931,0.000245,2]
[391873505,1760940344560,5000.0,0.00024141,2]
[391873508,1760940361398,1460.19089621,0.00024141,2]
[391873509,1760940361423,1390.27666762,0.00024141,2]
[391873510,1760940369553,5000.0,0.00024141,2]
[391873511,1760940391895,3001.84183924,0.00024141,2]
[391873512,1760940455999,300.0,0.000241,2]
[391873513,1760940458282,307.89149314,0.00024,2]
[391873514,1760940458307,852.03005281,0.00024,2]
[391873515,1760940467125,300.0,0.000241,2]
[391873516,1760940477762,300.0,0.000241,2]
[391873517,1760940488653,300.0,0.000241,2]
[391873519,1760940551134,-160.0,0.0002451,2]
[391873520,1760940551155,-255.45505438,0.0002499,2]
[391873521,1760940551175,-198.0,0.00025,2]
[391873522,1760940551196,-3761.31566672,0.00025017,2]
[391873523,1760940551217,-568.41433657,0.00025017,2]
[391873524,1760940551238,-200.0,0.00025026,2]
[391873525,1760940551260,-500.0,0.00025026,2]
[391873526,1760940551280,-171.54365532,0.00025026,2]
[391873527,1760940551302,-500.0,0.00025026,2]
[391873528,1760940551322,-56.72543275,0.00025026,2]
[391873529,1760940552985,172.905253,0.00024217,120]
[391873530,1760940563947,-172.905253,0.00024217,2]
[391873531,1760940563975,-127.09474703,0.00024217,21]
[391873532,1760940566519,-45.81050597,0.00024217,21]
[391873533,1760940566545,-172.905253,0.00024217,41]
[391873534,1760940566569,-109.50188363,0.00024217,61]
[391873535,1760940568548,-63.40336937,0.00024217,61]
[391873536,1760940568575,-172.905253,0.00024217,80]
[391873537,1760940568602,-5.23717467,0.00024217,100]
[391873538,1760940589175,4617.756,0.00024141,2]
[391873539,1760940589830,-167.66807833,0.00024217,100]
[391873540,1760940589853,-74.31083146,0.00024411,2]
[391873702,1760940637980,-467.23496561,0.00024411,2]
[391873703,1760940638152,-200.0,0.00024658,2]
[391873704,1760940638162,-159.77044649,0.00025026,2]
[391873705,1760940638172,-500.0,0.00025026,2]
[391873706,1760940638182,-394.69911282,0.00025026,2]
[391873707,1760940638191,-608.26863544,0.00025026,2]
[391873708,1760940638201,-314.94642132,0.00025026,2]
[391873709,1760940638211,-500.0,0.00025027,2]
[391873710,1760940638220,-272.05086096,0.00025027,2]
[391873711,1760940638240,-227.94913904,0.00025027,2]
[391873712,1760940638250,-500.0,0.00025027,2]
[391873713,1760940638260,-7866.50086096,0.00025027,30]
[391873714,1760940638272,-87133.49913904,0.00025027,30]
[391873715,1760940638281,-269.50708735,0.00025175,2]
[391873716,1760940638291,-3761.31566672,0.00025274,2]
[391873717,1760940638301,-568.41433657,0.00025274,2]
[391873718,1760940638310,-26329.209667,0.00025275,2]
[391873719,1760940638320,-3978.90035599,0.00025275,2]
[391873720,1760940638330,-230.22861876,0.00025284,2]
[391873721,1760940638341,-501.90100796,0.00025284,2]
[391873722,1760940638350,-370000.0,0.00025285,2]
[391873723,1760940638360,-1980.23022791,0.000254,7]
[391873724,1760940638370,-216.84,0.00026927,2]
[391873725,1760940638380,-1679.05,0.000284,2]
[391873726,1760940638389,-433.68,0.00029375,2]
[391873727,1760940638399,-402.9601108,0.00029567,2]
[391873728,1760940638409,-621.63,0.000297,2]
[391873729,1760940638419,-189.38,0.0003034,4]
[391873730,1760940638429,-3000.0,0.000304,4]
[391873731,1760940638439,-3761.31566672,0.000304,2]
[391873732,1760940638448,-568.41433657,0.000304,2]
[391873733,1760940638458,-3000.0,0.0003041,4]
[391873734,1760940638468,-3000.0,0.0003042,4]
[391873735,1760940638479,-3000.0,0.0003043,4]
[391873736,1760940638490,-3000.0,0.0003044,4]
[391873737,1760940638499,-3000.0,0.0003045,4]
[391873738,1760940638509,-3000.0,0.0003046,4]
[391873739,1760940638519,-3000.0,0.0003047,4]
[391873740,1760940638529,-3000.0,0.0003048,4]
[391873741,1760940638539,-3000.0,0.0003049,4]
[391873742,1760940638549,-3000.0,0.000305,4]
[391873743,1760940638558,-3000.0,0.0003051,4]
[391873744,1760940638568,-3000.0,0.0003052,4]
[391873745,1760940638578,-3000.0,0.0003053,4]
[391873746,1760940638588,-3000.0,0.0003054,4]
[391873747,1760940638600,-3761.31566672,0.0003054,2]
[391873748,1760940638609,-568.41433657,0.0003054,2]
[391873749,1760940638618,-3000.0,0.0003055,4]
[391873750,1760940638629,-3000.0,0.0003056,4]
[391873751,1760940638638,-3263.249241,0.0003057,4]
[391873752,1760940638648,-190.19051072,0.00031,120]
[391873753,1760940638658,-341.32649897,0.00031,120]
[391873754,1760940638667,-465.79207467,0.00031,120]
[391873755,1760940638676,-650.51,0.00031823,2]
[391873756,1760940638686,-156.19071,0.0003187,2]
[391873757,1760940638695,-156.959617,0.0003187,2]
[391873758,1760940638704,-14423.0,0.000319,7]
[391873759,1760940638714,-190.19051072,0.000319,120]
[391873760,1760940638724,-341.32649897,0.000319,120]
[391873761,1760940638733,-465.79207467,0.000319,120]
[391873762,1760940638743,-250.0,0.00031999,2]
[391873763,1760940638752,-716.0,0.00032,120]
[391873764,1760940638762,-156.19071,0.00032639,15]
[391873765,1760940638771,-156.959617,0.00032639,15]
[391873766,1760940638779,-1290.09349092,0.000327,8]
[391873767,1760940638787,-168.0,0.00032766,2]
[391873768,1760940638796,-3090.6,0.00032876,120]
[391873769,1760940638805,-190.19051072,0.000329,120]
[391873770,1760940638814,-341.32649897,0.000329,120]
[391873771,1760940638823,-465.79207467,0.000329,120]
[391873772,1760940638833,-7522.63133344,0.0003299,2]
[391873773,1760940638845,-1136.82867314,0.0003299,2]
[391873774,1760940638855,-160.0,0.00033,30]
[391873775,1760940638864,-160.0,0.00033,30]
[391873776,1760940638874,-160.0,0.00033,33]
[391873777,1760940638884,-160.0,0.00033,33]
[391873778,1760940638894,-56161.93426183,0.00033,2]
[391873779,1760940638907,-287.06573817,0.00033,2]
[391873780,1760940638918,-3000.0,0.00033,3]
[391873781,1760940638928,-150.0,0.00033864,30]
[391873782,1760940638937,-9892.53426183,0.00033864,32]
[391873827,1760940643103,-3e-08,0.00033864,32]
[391873847,1760940646252,-703.58794056,0.00033864,32]
[391873848,1760940656077,4482.254,0.00024024,2]
[391873849,1760940656100,2173.2134807,0.00024024,2]
[391873850,1760940689760,244.50266563,0.00024,2]
[391873852,1760941175511,5000.0,0.00024141,2]
[391873854,1760941235179,241.97890979,0.00024141,2]
[391873855,1760941248018,417.15472785,0.00024141,2]
[391873856,1760941460860,500.0,0.00029041,120]
[391873869,1760941584621,1241.43,0.00024141,2]
[391873870,1760941604123,-158.05801353,0.00024421,2]
[391873871,1760941604144,-76.16700688,0.000249,2]
[391873873,1760941666269,681.73021603,0.00018,2]
[391873874,1760941666296,10000.01,0.00018,2]
[391873875,1760941666323,10000.01,0.00018,2]
[391873876,1760941666349,3149.39302825,0.00018,2]
[391873877,1760941682773,4888.68804171,0.000237,30]
[391873878,1760941688365,1961.92893004,0.00019205,5]
[391873879,1760941688389,1123.73875285,0.00019205,5]
[391873880,1760941689459,-230.96152247,0.00024404,2]
[391873881,1760941692336,-155.36852801,0.00024404,2]
[391873882,1760941692970,5000.0,0.00024141,2]
[391873883,1760941694640,-179.28,0.00024404,2]
[391873884,1760941696168,2259.79958668,0.0002,30]
[391873885,1760941696773,-220.52139478,0.00024404,2]
[391873886,1760941697390,274.15982911,0.00021,2]
[391873887,1760941698023,1008.06944875,0.00015,2]
[391873888,1760941700276,-175.68324046,0.00024404,2]
[391873922,1760941712003,334.24238261,0.000212,30]
[391873923,1760941712025,4013.53348561,0.000212,30]
[391873927,1760941715719,5000.0,0.00024141,2]
[391873938,1760941721067,986.47651439,0.00024,30]
[391873939,1760941721090,8619.1108468,0.00024,30]
[391873940,1760941722385,162.74044815,0.00024,30]
[391873955,1760941832258,-496.33809117,0.00024404,2]
[391873956,1760941832356,-3541.84722311,0.00024404,2]
[391873959,1760941832365,-200.0,0.00024404,2]
[391873960,1760941832375,-300.0,0.00024649,2]
[391873963,1760941832384,-1200.0,0.00024649,2]
[391873965,1760941832393,-16277.91494777,0.0002465,2]
[391873966,1760941832402,-393.00454263,0.00024651,2]
[391873968,1760941832412,-97.39435214,0.000249,2]
[391873969,1760941832422,-14481.0653169,0.00024917,2]
[391873970,1760941832431,-1392.6151246,0.00024917,2]
[391873971,1760941832440,-640.74095598,0.00024926,2]
[391873972,1760941832449,-490.63048023,0.00024926,2]
[391873973,1760941832459,-161.16003313,0.00024926,2]
[391873974,1760941832469,-500.0,0.00024926,2]
[391873975,1760941832478,-500.0,0.00024926,2]